Workbook

Sheet Main
A1: Batch Description
A2: Beer Type | B2: Double IPA
A3: Beer Recipe Name | B3: Wicked Angel DIPA
A4: Yeast Type | B4: California Ale Yeast | D4: =IF(ISBLANK(B4),"",VLOOKUP(B4,Yeast_Table,2,FALSE)) -> WLP001 | E4: =IF(ISBLANK(B4),"",VLOOKUP(B4,Yeast_Table,5,FALSE) &" : " & VLOOKUP(B4,Yeast_Table,4,FALSE)) -> Liquid : ALE | F4: =IF(ISBLANK(B4),"",VLOOKUP(B4,Yeast_Table,6,FALSE)) -> 5.65
B5: Dry English Ale Yeast | D5: =IF(ISBLANK(B5),"",VLOOKUP(B5,Yeast_Table,2,FALSE)) -> WLP007 | E5: =IF(ISBLANK(B5),"",VLOOKUP(B5,Yeast_Table,5,FALSE) &" : " & VLOOKUP(B5,Yeast_Table,4,FALSE)) -> Liquid : ALE | F5: =IF(ISBLANK(B5),"",VLOOKUP(B5,Yeast_Table,6,FALSE)) -> 5.65
A6: Boil Size (gal) | B6: 12
A7: Batch Size (gal) | B7: 10
A8: Mash temperature (F) | B8: 150
A9: Primary Grains, Malts and Boil Adjuncts
A10: Name | C10: Amount (lbs) | E10: Bill % | F10: SRMg (Grain)
A11: =IF(ISBLANK(GrainBill!B3),"",GrainBill!B3) -> American 2-Row Barley | C11: =IF(ISBLANK(GrainBill!B3),"",GrainBill!C3) -> 23 | E11: =IF(ISBLANK(GrainBill!B3),"",GrainBill!D3) -> 0.9292929293 | F11: =IF(ISBLANK(GrainBill!B3),"",GrainBill!E3) -> 3
A12: =IF(ISBLANK(GrainBill!B4),"",GrainBill!B4) -> Carastan (Crystal), 15 | C12: =IF(ISBLANK(GrainBill!B4),"",GrainBill!C4) -> 1.5 | E12: =IF(ISBLANK(GrainBill!B4),"",GrainBill!D4) -> 0.06060606061 | F12: =IF(ISBLANK(GrainBill!B4),"",GrainBill!E4) -> 15
A13: =IF(ISBLANK(GrainBill!B5),"",GrainBill!B5) -> Wheat Malt (GWM) | C13: =IF(ISBLANK(GrainBill!B5),"",GrainBill!C5) -> 0.25 | E13: =IF(ISBLANK(GrainBill!B5),"",GrainBill!D5) -> 0.0101010101 | F13: =IF(ISBLANK(GrainBill!B5),"",GrainBill!E5) -> 3
A14: =IF(ISBLANK(GrainBill!B6),"",GrainBill!B6) -> American 2-Row Barley | C14: =IF(ISBLANK(GrainBill!B6),"",GrainBill!C6) -> 0 | E14: =IF(ISBLANK(GrainBill!B6),"",GrainBill!D6) -> 0 | F14: =IF(ISBLANK(GrainBill!B6),"",GrainBill!E6) -> 3
A15: =IF(ISBLANK(GrainBill!B7),"",GrainBill!B7) ->  | C15: =IF(ISBLANK(GrainBill!B7),"",GrainBill!C7) ->  | E15: =IF(ISBLANK(GrainBill!B7),"",GrainBill!D7) ->  | F15: =IF(ISBLANK(GrainBill!B7),"",GrainBill!E7) -> 
A16: =IF(ISBLANK(GrainBill!B8),"",GrainBill!B8) ->  | C16: =IF(ISBLANK(GrainBill!B8),"",GrainBill!C8) ->  | E16: =IF(ISBLANK(GrainBill!B8),"",GrainBill!D8) ->  | F16: =IF(ISBLANK(GrainBill!B8),"",GrainBill!E8) -> 
A17: Post Boil Fermentable Sugar Adjuncts | D17: Non-Fermentable Sugar Adjuncts
A18: Name | B18: Amount (lbs) | D18: Name | F18: Amount (lbs)
A19: =IF(ISBLANK(Adjuncts!A3),"",Adjuncts!A3) -> Corn Sugar | B19: =IF(ISBLANK(Adjuncts!A3),"",Adjuncts!C3) -> 1.5 | D19: =IF(ISBLANK(Adjuncts!A9),"",Adjuncts!A9) ->  | F19: =IF(ISBLANK(Adjuncts!A9),"",Adjuncts!C9) -> 
A20: =IF(ISBLANK(Adjuncts!A4),"",Adjuncts!A4) ->  | B20: =IF(ISBLANK(Adjuncts!A4),"",Adjuncts!C4) ->  | D20: =IF(ISBLANK(Adjuncts!A10),"",Adjuncts!A10) ->  | F20: =IF(ISBLANK(Adjuncts!A10),"",Adjuncts!C10) -> 
A21: =IF(ISBLANK(Adjuncts!A5),"",Adjuncts!A5) ->  | B21: =IF(ISBLANK(Adjuncts!A5),"",Adjuncts!C5) ->  | D21: =IF(ISBLANK(Adjuncts!A11),"",Adjuncts!A11) ->  | F21: =IF(ISBLANK(Adjuncts!A11),"",Adjuncts!C11) -> 
A22: =IF(ISBLANK(Adjuncts!A6),"",Adjuncts!A6) ->  | B22: =IF(ISBLANK(Adjuncts!A6),"",Adjuncts!C6) ->  | D22: =IF(ISBLANK(Adjuncts!A12),"",Adjuncts!A12) ->  | F22: =IF(ISBLANK(Adjuncts!A12),"",Adjuncts!C12) -> 
A23: Boil Additions
A24: Name | B24: Alpha Acid Content | C24: Amount (oz) | D24: Boil Time | E24: IBU Contribution
A25: =IF( ISBLANK(HopSchedule!B3),"",HopSchedule!B3) -> Centennial | B25: =IF(ISBLANK(HopSchedule!B3),"",HopSchedule!C3) -> 0.08 | C25: =IF(ISBLANK(HopSchedule!B3),"",HopSchedule!D3) -> 0 | D25: =IF(ISBLANK(HopSchedule!B3),"",HopSchedule!E3) -> 60 | E25: =IF(ISBLANK(HopSchedule!F3),"",HopSchedule!F3) -> 0
A26: =IF( ISBLANK(HopSchedule!B4),"",HopSchedule!B4) -> Palisade | B26: =IF(ISBLANK(HopSchedule!B4),"",HopSchedule!C4) -> 0.073 | C26: =IF(ISBLANK(HopSchedule!B4),"",HopSchedule!D4) -> 4 | D26: =IF(ISBLANK(HopSchedule!B4),"",HopSchedule!E4) -> 60 | E26: =IF(ISBLANK(HopSchedule!F4),"",HopSchedule!F4) -> 47.34498884
A27: =IF( ISBLANK(HopSchedule!B5),"",HopSchedule!B5) -> Palisade | B27: =IF(ISBLANK(HopSchedule!B5),"",HopSchedule!C5) -> 0.073 | C27: =IF(ISBLANK(HopSchedule!B5),"",HopSchedule!D5) -> 1 | D27: =IF(ISBLANK(HopSchedule!B5),"",HopSchedule!E5) -> 30 | E27: =IF(ISBLANK(HopSchedule!F5),"",HopSchedule!F5) -> 9.096449324
A28: =IF( ISBLANK(HopSchedule!B6),"",HopSchedule!B6) -> Cascade (U.S.) | B28: =IF(ISBLANK(HopSchedule!B6),"",HopSchedule!C6) -> 0.054 | C28: =IF(ISBLANK(HopSchedule!B6),"",HopSchedule!D6) -> 1 | D28: =IF(ISBLANK(HopSchedule!B6),"",HopSchedule!E6) -> 30 | E28: =IF(ISBLANK(HopSchedule!F6),"",HopSchedule!F6) -> 6.728880322
A29: =IF( ISBLANK(HopSchedule!B7),"",HopSchedule!B7) -> Cascade (U.S.) | B29: =IF(ISBLANK(HopSchedule!B7),"",HopSchedule!C7) -> 0.054 | C29: =IF(ISBLANK(HopSchedule!B7),"",HopSchedule!D7) -> 2 | D29: =IF(ISBLANK(HopSchedule!B7),"",HopSchedule!E7) -> 2 | E29: =IF(ISBLANK(HopSchedule!F7),"",HopSchedule!F7) -> 1.48064287
A30: =IF( ISBLANK(HopSchedule!B8),"",HopSchedule!B8) -> Palisade | B30: =IF(ISBLANK(HopSchedule!B8),"",HopSchedule!C8) -> 0.073 | C30: =IF(ISBLANK(HopSchedule!B8),"",HopSchedule!D8) -> 3 | D30: =IF(ISBLANK(HopSchedule!B8),"",HopSchedule!E8) -> 2 | E30: =IF(ISBLANK(HopSchedule!F8),"",HopSchedule!F8) -> 3.002414709
A31: =IF( ISBLANK(HopSchedule!B9),"",HopSchedule!B9) -> Cascade (U.S.) | B31: =IF(ISBLANK(HopSchedule!B9),"",HopSchedule!C9) -> 0.054 | C31: =IF(ISBLANK(HopSchedule!B9),"",HopSchedule!D9) -> 0.66 | D31: =IF(ISBLANK(HopSchedule!B9),"",HopSchedule!E9) -> 1 | E31: =IF(ISBLANK(HopSchedule!F9),"",HopSchedule!F9) -> 0.2491915437
A32: =IF( ISBLANK(HopSchedule!B10),"",HopSchedule!B10) ->  | B32: =IF(ISBLANK(HopSchedule!B10),"",HopSchedule!C10) ->  | C32: =IF(ISBLANK(HopSchedule!B10),"",HopSchedule!D10) ->  | D32: =IF(ISBLANK(HopSchedule!B10),"",HopSchedule!E10) ->  | E32: =IF(ISBLANK(HopSchedule!F10),"",HopSchedule!F10) -> 0
A33: Other Adjuncts
A34: Name of Adjunct | C34: Amount (oz) | D34: Boil Time
A39: Key Parameters | C39: Measured | D39: Est. Sugar Composition
A40: Boil Gravity | B40: =SUM(GrainGravity)/B7 + 1 -> 1.0619047 | C40: =Refractometer!A3 -> 1.067153391 | D40: Dextrose | F40: =(1-((Constants!B2-B8)/(Constants!B2-Constants!B3)))*(1-F42) -> 0.4158409475
A41: SGs | B41: =1+SUM(GrainGravity,Adjuncts!F3:F6)/B7 -> 1.0686547 | C41: =Refractometer!A9 -> 1.067153391 | D41: Maltose | F41: =((Constants!B2-B8)/(Constants!B2-Constants!B3))*(1-F42) -> 0.4158409475
A42: SGf | B42: 1.012 | C42: =IF(MIN(Refractometer!C13:C18)>0,MIN(Refractometer!C13:C18),Refractometer!C12) -> 1.009739645 | D42: Simple Sugars | F42: =SUM(Adjuncts!F3:F6)/SUM(Adjuncts!F3:F6,Adjuncts!F9:F11,GrainGravity)+0.07 -> 0.168318105
A43: SRMb | B43: =1.4922* (SUM(GrainBill!F3:F8)/B7)^0.6859 -> 6.850108843 | D43: Other Non-Fermentable Sugars | F43: =SUM(Adjuncts!F9:F11)/SUM(Adjuncts!F3:F6,Adjuncts!F9:F11,GrainGravity) -> 0
A44: IBU | B44: =SUM(HopSchedule!F3:F9) -> 67.90256761
A45: % ABV (Miller) | B45: =(B41-B42)/0.75 -> 0.0755396 | C45: =IF(ISNUMBER(C42),(C41-C42)/0.75,"TBD") -> 0.07655166142
A47: Malt Character
B48: Dry | C48: Semi-Dry | D48: Natural | E48: Semi-Sweet | F48: Sweet
B49: 0.1 | C49: 0.2 | D49: 0.3 | E49: 0.4 | F49: 0.5
A50: Expected / Calculated | B50: =IF(F40+F43<B49,"X","") ->  | C50: =IF($F40+$F43<=C49,IF($F40+$F43>B49,"X",""),"") ->  | D50: =IF($F40+$F43<=D49,IF($F40+$F43>C49,"X",""),"") ->  | E50: =IF($F40+$F43<=E49,IF($F40+$F43>D49,"X",""),"") ->  | F50: =IF(F40+F43>=F49,"X","") -> 
A51: Actual
A52: Color
B53: Clear | C53: Light | D53: Amber | E53: Brown/Red | F53: Dark
B54: 0 | C54: 5 | D54: 15 | E54: 20 | F54: 30
A55: Expected / Calculated | B55: =IF(B43<C54,"X","") ->  | C55: =IF($B43<=D54,IF($B43>C54,"X",""),"") -> X | D55: =IF($B43<=E54,IF($B43>D54,"X",""),"") ->  | E55: =IF($B43<=F54,IF($B43>E54,"X",""),"") ->  | F55: =IF(B43>=F54,"X","") -> 
A56: Actual | B56: =IF(ISNUMBER(C43),IF(C43<C54,"X",""),"") ->  | C56: =IF($C43<=D54,IF($C43>C54,"X",""),"") ->  | D56: =IF($C43<=E54,IF($C43>D54,"X",""),"") ->  | E56: =IF($C43<=F54,IF($C43>E54,"X",""),"") ->  | F56: =IF(C43>=F54,"X","") -> 
A57: Alcohol Content
B58: Very Light | C58: Light | D58: Normal | E58: Strong | F58: Very Strong
B59: 0.03 | C59: 0.035 | D59: 0.045 | E59: 0.07 | F59: 0.085
A60: Expected / Calculated | B60: =IF(B45<C59,"X","") ->  | C60: =IF($B45<=D59,IF($B45>C59,"X",""),"") ->  | D60: =IF($B45<=E59,IF($B45>D59,"X",""),"") ->  | E60: =IF($B45<=F59,IF($B45>E59,"X",""),"") -> X | F60: =IF($B45>=F59,"X","") -> 
A61: Actual | B61: =IF(C45<C59,"X","") ->  | C61: =IF($C45<=D59,IF($C45>C59,"X",""),"") ->  | D61: =IF($C45<=E59,IF($C45>D59,"X",""),"") ->  | E61: =IF($C45<=F59,IF($C45>E59,"X",""),"") -> X | F61: =IF(ISNUMBER(C45),IF($C45>=F59,"X",""),"") -> 

Sheet GrainBill
A1: Grains and Malts
A2: Line | B2: Name | C2: Amount (lbs) | D2: Bill % | E2: SRMg (Grain) | F2: SRMext | G2: Unit Gravity | H2: Gravity Yield | I2: Gravity | J2: price / lb | K2: ext | M2: =Main!A39 -> Key Parameters | N2: =Main!B39 -> 0 | O2: =Main!D39 -> Est. Sugar Composition | P2: =Main!E39 -> 0 | Q2: =Main!F39 -> 0
A3: 1 | B3: American 2-Row Barley | C3: 23 | D3: =IF(ISBLANK(B3),"",C3/$C$31) -> 0.9292929293 | E3: =IF(ISBLANK(B3)=FALSE,VLOOKUP(B3,GrainsAndMalts_Table,4,0),0) -> 3 | F3: =C3*E3 -> 69 | G3: =IF(ISBLANK(B3)=FALSE,VLOOKUP(B3,GrainsAndMalts_Table,3,0),0) -> 1.037 | H3: =IF(G3>1,(G3-1)*BrewhouseEfficiency,0) -> 0.025012 | I3: =C3*(H3) -> 0.575276 | J3: =IF(ISBLANK(B3)=FALSE,VLOOKUP(B3,GrainsAndMalts_Table,2,0),0) -> 1.09 | K3: =C3*J3 -> 25.07 | M3: =Main!A40 -> Boil Gravity | N3: =Main!B40 -> 1.0619047 | O3: =Main!D40 -> Dextrose | Q3: =Main!F40 -> 0.4158409475
A4: 2 | B4: Carastan (Crystal), 15 | C4: 1.5 | D4: =IF(ISBLANK(B4),"",C4/$C$31) -> 0.06060606061 | E4: 15 | F4: =C4*E4 -> 22.5 | G4: 1.037 | H4: 0.025012 | I4: =C4*(H4) -> 0.037518 | J4: 1.61 | K4: =C4*J4 -> 2.415 | M4: =Main!A41 -> SGs | N4: =Main!B41 -> 1.0686547 | O4: =Main!D41 -> Maltose | Q4: =Main!F41 -> 0.4158409475
A5: 3 | B5: Wheat Malt (GWM) | C5: 0.25 | D5: 0.0101010101 | E5: 3 | F5: 0.75 | G5: 1.037 | H5: 0.025012 | I5: 0.006253 | J5: 1.09 | K5: 0.2725 | M5: =Main!A42 -> SGf | N5: =Main!B42 -> 1.012 | O5: =Main!D42 -> Simple Sugars | Q5: =Main!F42 -> 0.168318105
A6: 4 | B6: American 2-Row Barley | C6: 0 | D6: 0 | E6: 3 | F6: 0 | G6: 1.037 | H6: 0.025012 | I6: 0 | J6: 1.09 | K6: 0 | M6: =Main!A43 -> SRMb | N6: =Main!B43 -> 6.850108843 | O6: =Main!D43 -> Other Non-Fermentable Sugars | P6: =Main!E43 -> 0 | Q6: =Main!F43 -> 0
A7: 5 | E7: 0 | F7: 0 | G7: 0 | H7: 0 | I7: 0 | J7: 0 | K7: 0 | M7: =Main!A44 -> IBU | N7: =Main!B44 -> 67.90256761
A8: 6 | E8: 0 | F8: 0 | G8: 0 | H8: 0 | I8: 0 | J8: 0 | K8: 0 | M8: =Main!A45 -> % ABV (Miller) | N8: =Main!B45 -> 0.0755396
A9: 7 | E9: 0 | F9: 0 | G9: 0 | H9: 0 | I9: 0 | J9: 0 | K9: 0
A10: 8 | E10: 0 | F10: 0 | G10: 0 | H10: 0 | I10: 0 | J10: 0 | K10: 0
A11: 9 | E11: 0 | F11: 0 | G11: 0 | H11: 0 | I11: 0 | J11: 0 | K11: 0
A12: 10 | E12: 0 | F12: 0 | G12: 0 | H12: 0 | I12: 0 | J12: 0 | K12: 0
A13: 11 | E13: 0 | F13: 0 | G13: 0 | H13: 0 | I13: 0 | J13: 0 | K13: 0
A14: 12 | E14: 0 | F14: 0 | G14: 0 | H14: 0 | I14: 0 | J14: 0 | K14: 0
A15: 13 | E15: 0 | F15: 0 | G15: 0 | H15: 0 | I15: 0 | J15: 0 | K15: 0
A16: 14 | E16: 0 | F16: 0 | G16: 0 | H16: 0 | I16: 0 | J16: 0 | K16: 0
A17: 15 | E17: 0 | F17: 0 | G17: 0 | H17: 0 | I17: 0 | J17: 0 | K17: 0
A18: 16 | E18: 0 | F18: 0 | G18: 0 | H18: 0 | I18: 0 | J18: 0 | K18: 0
A19: 17 | E19: 0 | F19: 0 | G19: 0 | H19: 0 | I19: 0 | J19: 0 | K19: 0
A20: 18 | E20: 0 | F20: 0 | G20: 0 | H20: 0 | I20: 0 | J20: 0 | K20: 0
A21: 19 | E21: 0 | F21: 0 | G21: 0 | H21: 0 | I21: 0 | J21: 0 | K21: 0
A22: 20 | E22: 0 | F22: 0 | G22: 0 | H22: 0 | I22: 0 | J22: 0 | K22: 0
A23: 21 | E23: 0 | F23: 0 | G23: 0 | H23: 0 | I23: 0 | J23: 0 | K23: 0
A24: 22 | E24: 0 | F24: 0 | G24: 0 | H24: 0 | I24: 0 | J24: 0 | K24: 0
A25: 23 | E25: 0 | F25: 0 | G25: 0 | H25: 0 | I25: 0 | J25: 0 | K25: 0
A26: 24 | E26: 0 | F26: 0 | G26: 0 | H26: 0 | I26: 0 | J26: 0 | K26: 0
A27: 25 | E27: 0 | F27: 0 | G27: 0 | H27: 0 | I27: 0 | J27: 0 | K27: 0
A28: 26 | E28: 0 | F28: 0 | G28: 0 | H28: 0 | I28: 0 | J28: 0 | K28: 0
A29: 27 | E29: 0 | F29: 0 | G29: 0 | H29: 0 | I29: 0 | J29: 0 | K29: 0
A30: 28 | E30: 0 | F30: 0 | G30: 0 | H30: 0 | I30: 0 | J30: 0 | K30: 0
B31: Total Grain Wieght | C31: =SUM(C3:C9) -> 24.75 | D31: 1 | J31: Total | K31: =SUM(K3:K30) -> 27.7575

Sheet HopSchedule
A1: Boil Additions
A2: Line | B2: Hops Type | C2: Alpha Acid Content | D2: Amount (oz) | E2: Boil Time | F2: IBU Contribution | G2: AAU | H2: Utilization | I2: Scheduled Addition Time | J2: Action | K2: Completed | L2: Status | M2: price / oz | N2: ext
A3: 1 | B3: Centennial | C3: =IF(ISBLANK(B3)=FALSE,VLOOKUP(B3,Hops_Table,3,FALSE),0) -> 0.08 | D3: 0 | E3: 60 | F3: =G3*H3*75/Main!$B$7 -> 0 | G3: =D3*C3*100 -> 0 | H3: =(1.65*0.000125^((Main!$B$41-1)*(Main!$B$7/Main!$B$6)))*((1-EXP(-0.04*E3))/4.15) -> 0.2161871636 | I3: 2011-12-31T16:03:18 | J3: =IF(ISBLANK(B3)=FALSE,IF(NOW()>I3, "Add", "Wait"),"") -> Add | K3: x | L3: =IF(ISBLANK(B3)=FALSE,IF(J3="Add",IF(ISBLANK(K3)=TRUE, 2,0),1),"") -> 0 | M3: =IF(ISBLANK(B3)=FALSE,VLOOKUP(B3,Hops_Table,2,0),0) -> 0.671875 | N3: =M3*D3 -> 0
A4: 2 | B4: Palisade | C4: 0.073 | D4: 4 | E4: 60 | F4: =G4*H4*75/Main!$B$7 -> 47.34498884 | G4: 29.2 | H4: =(1.65*0.000125^((Main!$B$41-1)*(Main!$B$7/Main!$B$6)))*((1-EXP(-0.04*E4))/4.15) -> 0.2161871636 | I4: =IF(ISBLANK(B4),"",$I$3+($E$3-E4)/24/60) -> 40908.66896 | J4: =IF(ISBLANK(B4)=FALSE,IF(NOW()>I4, "Add", "Wait"),"") -> Add | K4: x | L4: =IF(ISBLANK(B4)=FALSE,IF(J4="Add",IF(ISBLANK(K4)=TRUE, 2,0),1),"") -> 0 | M4: 0.55 | N4: 2.2
A5: 3 | B5: Palisade | C5: =IF(ISBLANK(B5)=FALSE,VLOOKUP(B5,Hops_Table,3,FALSE),0) -> 0.073 | D5: 1 | E5: 30 | F5: =G5*H5*75/Main!$B$7 -> 9.096449324 | G5: 7.3 | H5: =(1.65*0.000125^((Main!$B$41-1)*(Main!$B$7/Main!$B$6)))*((1-EXP(-0.04*E5))/4.15) -> 0.1661451931 | I5: =IF(ISBLANK(B5),"",$I$3+($E$3-E5)/24/60) -> 40908.68979 | J5: =IF(ISBLANK(B5)=FALSE,IF(NOW()>I5, "Add", "Wait"),"") -> Add | K5: x | L5: 0 | M5: 0.55 | N5: 0.55
A6: 4 | B6: Cascade (U.S.) | C6: =IF(ISBLANK(B6)=FALSE,VLOOKUP(B6,Hops_Table,3,FALSE),0) -> 0.054 | D6: 1 | E6: 30 | F6: =G6*H6*75/Main!$B$7 -> 6.728880322 | G6: 5.4 | H6: =(1.65*0.000125^((Main!$B$41-1)*(Main!$B$7/Main!$B$6)))*((1-EXP(-0.04*E6))/4.15) -> 0.1661451931 | I6: 40908.68979 | J6: Add | K6: x | L6: 0 | M6: 0.546875 | N6: 0.546875
A7: 5 | B7: Cascade (U.S.) | C7: 0.054 | D7: 2 | E7: 2 | F7: =G7*H7*75/Main!$B$7 -> 1.48064287 | G7: 10.8 | H7: =(1.65*0.000125^((Main!$B$41-1)*(Main!$B$7/Main!$B$6)))*((1-EXP(-0.04*E7))/4.15) -> 0.01827954161 | I7: 40908.70924 | J7: Add | L7: 2 | M7: 0.546875 | N7: 1.09375
A8: 6 | B8: Palisade | C8: 0.073 | D8: 3 | E8: 2 | F8: =G8*H8*75/Main!$B$7 -> 3.002414709 | G8: 21.9 | H8: =(1.65*0.000125^((Main!$B$41-1)*(Main!$B$7/Main!$B$6)))*((1-EXP(-0.04*E8))/4.15) -> 0.01827954161 | I8: 40908.70924 | J8: Add | L8: 2 | M8: 0.55 | N8: 1.65
A9: 7 | B9: Cascade (U.S.) | C9: 0.054 | D9: 0.66 | E9: 1 | F9: =G9*H9*75/Main!$B$7 -> 0.2491915437 | G9: 3.564 | H9: =(1.65*0.000125^((Main!$B$41-1)*(Main!$B$7/Main!$B$6)))*((1-EXP(-0.04*E9))/4.15) -> 0.009322541851 | I9: 40908.70993 | J9: Add | L9: 2 | M9: 0.546875 | N9: 0.3609375
A10: 8 | C10: 0 | F10: =G10*H10*75/Main!$B$7 -> 0 | G10: 0 | H10: =(1.65*0.000125^((Main!$B$41-1)*(Main!$B$7/Main!$B$6)))*((1-EXP(-0.04*E10))/4.15) -> 0 | M10: 0 | N10: 0
A11: 9 | C11: 0 | F11: =G11*H11*75/Main!$B$7 -> 0 | G11: 0 | H11: =(1.65*0.000125^((Main!$B$41-1)*(Main!$B$7/Main!$B$6)))*((1-EXP(-0.04*E11))/4.15) -> 0 | M11: 0 | N11: 0
A12: 10 | C12: 0 | F12: =G12*H12*75/Main!$B$7 -> 0 | G12: 0 | H12: =(1.65*0.000125^((Main!$B$41-1)*(Main!$B$7/Main!$B$6)))*((1-EXP(-0.04*E12))/4.15) -> 0 | M12: 0 | N12: 0
A13: 11 | C13: 0 | F13: =G13*H13*75/Main!$B$7 -> 0 | G13: 0 | H13: =(1.65*0.000125^((Main!$B$41-1)*(Main!$B$7/Main!$B$6)))*((1-EXP(-0.04*E13))/4.15) -> 0 | M13: 0 | N13: 0
A14: 12 | C14: 0 | F14: =G14*H14*75/Main!$B$7 -> 0 | G14: 0 | H14: =(1.65*0.000125^((Main!$B$41-1)*(Main!$B$7/Main!$B$6)))*((1-EXP(-0.04*E14))/4.15) -> 0 | M14: 0 | N14: 0
A15: 13 | C15: 0 | F15: =G15*H15*75/Main!$B$7 -> 0 | G15: 0 | H15: =(1.65*0.000125^((Main!$B$41-1)*(Main!$B$7/Main!$B$6)))*((1-EXP(-0.04*E15))/4.15) -> 0 | M15: 0 | N15: 0
A16: 14 | C16: 0 | F16: =G16*H16*75/Main!$B$7 -> 0 | G16: 0 | H16: =(1.65*0.000125^((Main!$B$41-1)*(Main!$B$7/Main!$B$6)))*((1-EXP(-0.04*E16))/4.15) -> 0 | M16: 0 | N16: 0
A17: 15 | C17: 0 | F17: =G17*H17*75/Main!$B$7 -> 0 | G17: 0 | H17: =(1.65*0.000125^((Main!$B$41-1)*(Main!$B$7/Main!$B$6)))*((1-EXP(-0.04*E17))/4.15) -> 0 | M17: 0 | N17: 0
A18: 16 | C18: 0 | F18: =G18*H18*75/Main!$B$7 -> 0 | G18: 0 | H18: =(1.65*0.000125^((Main!$B$41-1)*(Main!$B$7/Main!$B$6)))*((1-EXP(-0.04*E18))/4.15) -> 0 | M18: 0 | N18: 0
A19: Total IBU | F19: =SUM(F3:F18) -> 67.90256761 | M19: Total | N19: =SUM(N3:N18) -> 6.4015625

Sheet Adjuncts
A1: Post Boil Fermentable Sugar Adjuncts
A2: Name | B2: Unit Gravity | C2: Amount (lbs) | D2: SRMg | E2: SRMext | F2: Gravity | G2: price / lb | H2: ext | L2: =Main!A39 -> Key Parameters | M2: =Main!B39 -> 0 | N2: =Main!D39 -> Est. Sugar Composition | O2: =Main!E39 -> 0 | P2: =Main!F39 -> 0
A3: Corn Sugar | B3: =IF(ISBLANK(A3)=FALSE,VLOOKUP(A3,Adjunct_Table,3,FALSE),0) -> 1.045 | C3: 1.5 | D3: =IF(ISBLANK(A3)=FALSE,VLOOKUP(A3,Adjunct_Table,4,FALSE),0) -> 1 | E3: =IF(ISBLANK(A3),0,C3*D3) -> 1.5 | F3: =IF(ISBLANK(A3),0,C3*(B3-1)) -> 0.0675 | G3: =IF(ISBLANK(A3)=FALSE,VLOOKUP(A3,Adjunct_Table,2,FALSE),0) -> 1.18 | H3: =C3*G3 -> 1.77 | L3: =Main!A40 -> Boil Gravity | M3: =Main!B40 -> 1.0619047 | N3: =Main!D40 -> Dextrose | P3: =Main!F40 -> 0.4158409475
B4: =IF(ISBLANK(A4)=FALSE,VLOOKUP(A4,Adjunct_Table,3,FALSE),0) -> 0 | D4: =IF(ISBLANK(A4)=FALSE,VLOOKUP(A4,Adjunct_Table,4,FALSE),0) -> 0 | E4: =IF(ISBLANK(A4),0,C4*D4) -> 0 | F4: =IF(ISBLANK(A4),0,C4*(B4-1)) -> 0 | G4: =IF(ISBLANK(A4)=FALSE,VLOOKUP(A4,Adjunct_Table,2,FALSE),0) -> 0 | H4: =C4*G4 -> 0 | L4: =Main!A41 -> SGs | M4: =Main!B41 -> 1.0686547 | N4: =Main!D41 -> Maltose | P4: =Main!F41 -> 0.4158409475
B5: =IF(ISBLANK(A5)=FALSE,VLOOKUP(A5,Adjunct_Table,3,FALSE),0) -> 0 | D5: =IF(ISBLANK(A5)=FALSE,VLOOKUP(A5,Adjunct_Table,4,FALSE),0) -> 0 | E5: 0 | F5: 0 | G5: =IF(ISBLANK(A5)=FALSE,VLOOKUP(A5,Adjunct_Table,2,FALSE),0) -> 0 | H5: 0 | L5: =Main!A42 -> SGf | M5: =Main!B42 -> 1.012 | N5: =Main!D42 -> Simple Sugars | P5: =Main!F42 -> 0.168318105
B6: =IF(ISBLANK(A6)=FALSE,VLOOKUP(A6,Adjunct_Table,3,FALSE),0) -> 0 | D6: =IF(ISBLANK(A6)=FALSE,VLOOKUP(A6,Adjunct_Table,4,FALSE),0) -> 0 | E6: 0 | F6: 0 | G6: =IF(ISBLANK(A6)=FALSE,VLOOKUP(A6,Adjunct_Table,2,FALSE),0) -> 0 | H6: 0 | L6: =Main!A43 -> SRMb | M6: =Main!B43 -> 6.850108843 | N6: =Main!D43 -> Other Non-Fermentable Sugars | O6: =Main!E43 -> 0 | P6: =Main!F43 -> 0
A7: Non-Fermentable Sugar Adjuncts | L7: =Main!A44 -> IBU | M7: =Main!B44 -> 67.90256761
A8: Name | B8: Unit Gravity | C8: Amount (lbs) | D8: SRMg | E8: SRMext | F8: Gravity | G8: price / lb | H8: ext | L8: =Main!A45 -> % ABV (Miller) | M8: =Main!B45 -> 0.0755396
B9: =IF(ISBLANK(A9)=FALSE,VLOOKUP(A9,Adjunct_Table,3,FALSE),0) -> 0 | D9: =IF(ISBLANK(A9)=FALSE,VLOOKUP(A9,Adjunct_Table,4,FALSE),0) -> 0 | E9: =IF(ISBLANK(A9),0,C9*D9) -> 0 | F9: =IF(ISBLANK(A9),0,C9*(B9-1)) -> 0 | G9: =IF(ISBLANK(A9)=FALSE,VLOOKUP(A9,Adjunct_Table,2,FALSE),0) -> 0 | H9: =C9*G9 -> 0
B10: =IF(ISBLANK(A10)=FALSE,VLOOKUP(A10,Adjunct_Table,3,FALSE),0) -> 0 | D10: =IF(ISBLANK(A10)=FALSE,VLOOKUP(A10,Adjunct_Table,4,FALSE),0) -> 0 | E10: =IF(ISBLANK(A10),0,C10*D10) -> 0 | F10: =IF(ISBLANK(A10),0,C10*(B10-1)) -> 0 | G10: =IF(ISBLANK(A10)=FALSE,VLOOKUP(A10,Adjunct_Table,2,FALSE),0) -> 0 | H10: =C10*G10 -> 0
B11: =IF(ISBLANK(A11)=FALSE,VLOOKUP(A11,Adjunct_Table,3,FALSE),0) -> 0 | D11: =IF(ISBLANK(A11)=FALSE,VLOOKUP(A11,Adjunct_Table,4,FALSE),0) -> 0 | E11: 0 | F11: 0 | G11: =IF(ISBLANK(A11)=FALSE,VLOOKUP(A11,Adjunct_Table,2,FALSE),0) -> 0 | H11: 0
B12: =IF(ISBLANK(A12)=FALSE,VLOOKUP(A12,Adjunct_Table,3,FALSE),0) -> 0 | D12: =IF(ISBLANK(A12)=FALSE,VLOOKUP(A12,Adjunct_Table,4,FALSE),0) -> 0 | E12: 0 | F12: 0 | G12: =IF(ISBLANK(A12)=FALSE,VLOOKUP(A12,Adjunct_Table,2,FALSE),0) -> 0 | H12: 0
B13: =IF(ISBLANK(A13)=FALSE,VLOOKUP(A13,Adjunct_Table,3,FALSE),0) -> 0 | D13: =IF(ISBLANK(A13)=FALSE,VLOOKUP(A13,Adjunct_Table,4,FALSE),0) -> 0 | E13: =IF(ISBLANK(A13),0,C13*D13) -> 0 | F13: =IF(ISBLANK(A13),0,C13*(B13-1)) -> 0 | G13: =IF(ISBLANK(A13)=FALSE,VLOOKUP(A13,Adjunct_Table,2,FALSE),0) -> 0 | H13: =C13*G13 -> 0
G14: Total | H14: =SUM(H9:H12,H3:H6) -> 1.77

Sheet Refractometer
A1: Actual Post Boil Reading
A2: 16.4 | B2: Enter Post Boil Reading
A3: =1.000019+0.003865613*(A2)+0.00001296425*(A2*A2)+0.00000005701128*(A2*A2*A2) -> 1.067153391 | B3: Post Boil O.G | E3: 1.000019+0.003865613*(A8)+0.00001296425*(A8*A8)+0.00000005701128*(A8*A8*A8)
A4: =A3+SUM(Adjuncts!F3:F6)/Main!B7 -> 1.073903391 | B4: Synthetic O.G. based on adjunct addition post boil.
A7: Corrected for After Pitch Sugar Addition
A8: 16.4 | B8: Synthetic Refractometer Reading
A9: =1.000019+0.003865613*(A8)+0.00001296425*(A8*A8)+0.00000005701128*(A8*A8*A8) -> 1.067153391 | B9: O.G. (Original Specific Gravity)
A11: Refract Reading | B11: Temp (in F) If NON ATC | C11: F.G. (Adjusted for Alc and Temp) | D11: Date | E11: Notes
A12: 8 | B12: 68 | C12: =IF(A12>0,(1.001843-0.002318474*(A$8)-0.000007775*(A$8^2)-0.000000034*(A$8^3)+0.00574*($A12)+0.00003344*($A12^2)+0.000000086*($A12^3))+(1.313454-0.132674*B12+0.002057793*(B12^2)-0.000002627634*(B12^3))*0.001,"") -> 1.010663727 | E12: Target Reading
A13: 7.8 | C13: 1.009739645 | D13: 2011-01-06 | E13: Primary Ferm Complete

Sheet BatchAnalytics
A1: Grainbill Expense | B1: =Grainbill_Total -> 27.7575 | F1: batch price] | G1: Batch Profit
A2: Adjunct Expense | B2: =Adjunct_Total -> 1.77
A3: Yeast Expense | B3: =SUM(Main!F4:F5) -> 11.3 | F3: =C13*Main!B7/5 -> 160 | G3: =F3-B5 -> 112.7709375
A4: Hops Expense | B4: =Hop_Total -> 6.4015625
A5: Batch Total Cost | B5: =SUM(B1:B4) -> 47.2290625
A7: Gallon Cost | B7: =B5/Main!B7 -> 4.72290625
A8: Bottle Cost (12oz) | B8: =B7/CONVERT(1,"gal","oz")*12 -> 0.4427724609
A10: Package | B10: Cost | C10: Price | D10: Profit / Gal
A11: 6pack | B11: =B8*6 -> 2.656634766 | C11: 9 | D11: =(C11-B11)/CONVERT(6*12,"oz","gal") -> 11.27709375
A12: keg 2.5gal | B12: =B7*2.5 -> 11.80726562 | C12: 40 | D12: =(C12-B12)/2.5 -> 11.27709375
A13: Keg 5gal | B13: =B7*5 -> 23.61453125 | C13: 80 | D13: =(C13-B13)/5 -> 11.27709375

Sheet Catalog
A1: Grains and Malts | B1: Price / lb | C1: Unit Gravity | D1: SRMg (Grain) | E1: http://www.homebrewtalk.com/wiki/index.php/Malts_Ch
A2: Pale Malt, Belgian | B2: 1.09 | C2: 1.037 | D2: 1.5
A3: Carastan (Crystal), 15 | B3: 1.61 | C3: 1.037 | D3: 15
A4: Wheat Malt (GWM) | B4: 1.09 | C4: 1.037 | D4: 3
A5: American 2-Row Barley | B5: 1.09 | C5: 1.037 | D5: 3
A6: Ale Malt, NW (GWM) | B6: 1.09
A7: Munich Malt (GWM) | B7: 1.09 | C7: 1.037 | D7: 9
A8: Pilsner Malt, Belgian | B8: 1.09
A9: Pilsner Malt, German | B9: 1.09
A10: Vienna Malt (GWM) | B10: 1.09
A11: Pale Malt, Maris Otter | B11: 1.09
A12: 6 Row (Briess) | B12: 1.09 | C12: 1.035 | D12: 2
A13: Acid Malt | B13: 1.6
A14: Aromatic Malt | B14: 1.6 | C14: 1.036 | D14: 20
A15: Biscuit Malt | B15: 1.6
A16: Black Patent Malt | B16: 1.6
A17: Brown Malt (HB) | B17: 1.6
A18: Caramunich Malt | B18: 1.6
A19: Caravienne Malt | B19: 1.6
A20: Chocolate Malt | B20: 1.6
A21: Carapils Malt (Dextrine) | B21: 1.6 | C21: 1.033 | D21: 2
A22: Crytstal 35 | B22: 1.6 | D22: 35
A23: Crystal 60 | B23: 1.6 | D23: 60
A24: Crystal 75 | B24: 1.6 | D24: 75
A25: Crystal 120 | B25: 1.6 | D25: 120
A26: Crystal 150 | B26: 1.6 | D26: 150
A27: Flaked Barley | B27: 1.6 | C27: 1.032 | D27: 1.7
A28: Flaked Corn (Maize) | B28: 1.6 | C28: 1.037 | D28: 1.3
A29: Flaked Oat | B29: 1.6 | C29: 1.037 | D29: 1
A30: Flaked Rice | B30: 1.6 | C30: 1.032 | D30: 1
A31: Flaked Rye | B31: 1.6 | C31: 1.036 | D31: 2
A32: Flaked Wheat | B32: 1.6 | C32: 1.035 | D32: 1.6
A33: Honey Malt | B33: 1.6
A34: Peated (Smoked) Malt (HB) | B34: 1.6 | C34: 1.034 | D34: 3
A35: Rauch (Smoked) Malt | B35: 1.6 | C35: 1.037 | D35: 9
A36: Roasted Barley | B36: 1.6
A37: Rye Malt | B37: 1.6
A38: Special B Malt | B38: 1.6
A39: Special Roast (Briess) | B39: 1.6
A40: Torrified Wheat | B40: 1.6 | C40: 1.036 | D40: 1.7
A41: Victory Malt(Briess) | B41: 1.6
A42: HullsRice/Oat/Barley | B42: 1 | C42: 1 | D42: 1
A43: DME | B43: 3 | C43: 1.045 | D43: 1.5
A46: Adjuncts | B46: Price / lb | C46: Unit Gravity | D46: SRMg (Grain)
A47: Corn Sugar | B47: 1.18 | C47: 1.045 | D47: 1
A48: Molasses
A49: Candi (Beet) Sugar
A52: Hops | B52: Price / oz | C52: AAU (%) | D52: Usage | E52: Description
A53: Admiral (U.K.)
A54: Ahtanum
A55: Amarillo
A56: Apollo
A57: Aurora (Slovenia)
A58: Bramling Cross (U.K.)
A59: Bravo
A60: Brewer's Gold (German)
A61: Brewer's Gold (U.S.)
A62: Bullion (U.K.)
A63: Cascade (Argentina)
A64: Cascade (New Zealand)
A65: Cascade (U.S.) | B65: =8.75/16 -> 0.546875 | C65: 0.054 | D65: Dual | E65: Aroma - flowery & citrusy. Very versatile.
A66: Centennial | B66: =10.75/16 -> 0.671875 | C66: 0.08 | D66: Dual | E66: Aroma - floral & citrusy
A67: Challenger (U.K.)
A68: Chinook
A69: Cluster
A70: Columbus
A71: Crystal
A72: Eroica (German)
A73: First Gold (U.K.
A74: Fuggle (U.K.)
A75: Fuggle (U.S.)
A76: Galena
A77: Glacier (U.S.
A78: Golding (U.S.
A79: Green Bullet (New Zealand)
A80: Hallertau Aroma (New Zealand)
A81: Hallertauer (U.S.) | C81: 0.044 | D81: Aroma | E81: Aroma - mild, slightly flowery
A82: Hallertauer Gold (German)
A83: Hallertauer Gold (German)
A84: Hallertauer Mittelfroh (German
A85: Hallertauer Tradition (German)
A86: Herald (U.K.)
A87: Hersbrucker (German
A88: Horizon
A89: Kent Golding (U.K.)
A90: Liberty
A91: Lublin (Poland)
A92: Magnum
A93: Marynka (Poland)
A94: Millenium
A95: Motueka (New Zealand)
A96: Mt. Hood | C96: 0.052
A97: Nelson Sauvin (New Zealand)
A98: Newport
A99: Northdown (U.K.)
A100: Northern Brewer (German)
A101: Northern Brewer (U.S.)
A102: Northwest Golding
A103: Nugget
A104: Olympic
A105: Opal (German)
A106: Pacific Gem (New Zealand)
A107: Pacific Jade (New Zealand)
A108: Pacifica (New Zealand)
A109: Palisade | B109: 0.55 | C109: 0.073 | D109: Dual
A110: Perle (German)
A111: Perle (U.S.)
A112: Phoenix (U.K.)
A113: Pioneer (U.K.
A114: Premiant (Czech)
A115: Pride of Ringwood (Australia)
A116: Progress (U.K.
A117: Riwaka (New Zealand)
A118: Saaz (Czech)
A119: Saaz (U.S.) | B119: =8.75/16 -> 0.546875 | C119: 0.058
A120: Santiam
A121: Saphir (German)
A122: Satus
A123: Select (German)
A124: Simcoe
A125: Sladek (Czech)
A126: Sorachi Ace (Japan)
A127: Southern Cross (New Zealand)
A128: Spalt (German)
A129: Spalt Select (German)
A130: Spalt Select (U.S.)
A131: Sterling
A132: Strisslespalt (France
A133: Styrian Golding (Slovenia) | C133: 0.048
A134: Summit
A135: Sun
A136: Super Alpha (New Zealand)
A137: Super Pride (Australia)
A138: Target (U.K.)
A139: Tettnanger (German
A140: Tettnanger (U.S.)
A141: Tomahawk
A142: Tradition (German)
A143: Ultra
A144: Vanguard
A145: Warrior
A146: WGV (Whitbread Golding Variety) (U.K.)
A147: Willamette
A148: Yakima Cluster
A149: Zeus
A150: ---=== Adjuncts ===---
A151: Corriander
A152: Bitter Orange (Dry)
A153: Sweet Orange Peel (Dry)
A154: Fresh Orange Peel
A155: Pumpkin Pie Spice
A162: Yeast | B162: Item # | C162: Lab | D162: Type | E162: Form | F162: Price / ea.
A163: California Ale Yeast | B163: WLP001 | C163: White labs | D163: ALE | E163: Liquid | F163: 5.65
A164: English Ale Yeast | B164: WLP002 | C164: White labs | D164: ALE | E164: Liquid | F164: 5.65
A165: Irish Ale Yeast | B165: WLP004 | C165: White labs | D165: ALE | E165: Liquid | F165: 5.65
A166: British Ale Yeast | B166: WLP005 | C166: White labs | D166: ALE | E166: Liquid | F166: 5.65
A167: Dry English Ale Yeast | B167: WLP007 | C167: White labs | D167: ALE | E167: Liquid | F167: 5.65
A168: East Coast Ale Yeast | B168: WLP008 | C168: White labs | D168: ALE | E168: Liquid | F168: 5.65
A169: European Ale Yeast | B169: WLP011 | C169: White labs | D169: ALE | E169: Liquid | F169: 5.65
A170: London Ale Yeast | B170: WLP013 | C170: White labs | D170: ALE | E170: Liquid | F170: 5.65
A171: California V Ale Yeast | B171: WLP051 | C171: White labs | D171: ALE | E171: Liquid | F171: 5.65
A172: Burton Ale Yeast | B172: WLP023 | C172: White labs | D172: ALE | E172: Liquid | F172: 5.65
A173: Edinburgh Scottish Ale Yeast | B173: WLP028 | C173: White labs | D173: ALE | E173: Liquid | F173: 5.65
A174: German/Kolsch Ale Yeast | B174: WLP029 | C174: White labs | D174: ALE | E174: Liquid | F174: 5.65
A175: Hefeweizen Ale Yeast | B175: WLP300 | C175: White labs | D175: Specialty Ale | E175: Liquid | F175: 5.65
A176: American Hefeweizen Ale Yeast | B176: WLP320 | C176: White labs | D176: Specialty Ale | E176: Liquid | F176: 5.65
A177: Hefeweizen IV Ale Yeast | B177: WLP380 | C177: White labs | D177: Specialty Ale | E177: Liquid | F177: 5.65
A178: Belgian Wit Ale Yeast | B178: WLP400 | C178: White labs | D178: Specialty Ale | E178: Liquid | F178: 5.65
A179: Trappist Ale Yeast | B179: WLP500 | C179: White labs | D179: Specialty Ale | E179: Liquid | F179: 5.65
A180: Abbey Ale Yeast | B180: WLP530 | C180: White labs | D180: Specialty Ale | E180: Liquid | F180: 5.65
A181: Belgian Ale Yeast | B181: WLP550 | C181: White labs | D181: Specialty Ale | E181: Liquid | F181: 5.65
A182: Saison Ale Yeast | B182: WLP565 | C182: White labs | D182: Specialty Ale | E182: Liquid | F182: 5.65
A183: Belgian Golden Ale Yeast | B183: WLP570 | C183: White labs | D183: Specialty Ale | E183: Liquid | F183: 5.65
A184: Champagne Yeast | B184: WLP715 | C184: White labs | D184: Wine/Mead | E184: Liquid | F184: 5.65
A185: Avize Yeast | B185: WLP718 | C185: White labs | D185: Wine/Mead | E185: Liquid | F185: 5.65
A186: Sweet Mead/Wine Yeast | B186: WLP720 | C186: White labs | D186: Wine/Mead | E186: Liquid | F186: 5.65
A187: SteingbergGeisenheim Yeast | B187: WLP727 | C187: White labs | D187: Wine/Mead | E187: Liquid | F187: 5.65
A188: French White Yeast | B188: WLP735 | C188: White labs | D188: Wine/Mead | E188: Liquid | F188: 5.65
A189: Merlot Red Wine Yeast | B189: WLP740 | C189: White labs | D189: Wine/Mead | E189: Liquid | F189: 5.65
A190: French Red Yeast | B190: WLP750 | C190: White labs | D190: Wine/Mead | E190: Liquid | F190: 5.65
A191: Cabernet Red Wine Yeast | B191: WLP760 | C191: White labs | D191: Wine/Mead | E191: Liquid | F191: 5.65
A192: Suremain Burgundy Yeast | B192: WLP770 | C192: White labs | D192: Wine/Mead | E192: Liquid | F192: 5.65
A193: English Cider Yeast | B193: WLP775 | C193: White labs | D193: Wine/Mead | E193: Liquid | F193: 5.65
A194: Malolactic Bacteria | B194: WLP675 | C194: White labs | D194: Wine/Mead | E194: Liquid | F194: 5.65
A195: Pilsner Lager Yeast | B195: WLP800 | C195: White labs | D195: Lager | E195: Liquid | F195: 5.65
A196: Czech Budejovice Lager Yeast | B196: WLP802 | C196: White labs | D196: Lager | E196: Liquid | F196: 5.65
A197: Oktoberfest Lager Yeast | B197: WLP820 | C197: White labs | D197: Lager | E197: Liquid | F197: 5.65
A198: German Lager Yeast | B198: WLP830 | C198: White labs | D198: Lager | E198: Liquid | F198: 5.65
A199: Southern German Lager Yeast | B199: WLP838 | C199: White labs | D199: Lager | E199: Liquid | F199: 5.65
A200: American Pilsner Lager Yeast | B200: WLP840 | C200: White labs | D200: Lager | E200: Liquid | F200: 5.65
A201: German Bock Yeast | B201: WLP833 | C201: White labs | D201: Lager | E201: Liquid | F201: 5.65
A202: Klassic Ale Yeast | B202: WLP033 | C202: White labs | D202: Seasonal | E202: Liquid | F202: 5.65
A203: Belgian Bastogne Ale Yeast | B203: WLP510 | C203: White labs | D203: Seasonal | E203: Liquid | F203: 5.65
A204: Mexican Lager Yeast | B204: WLP940 | C204: White labs | D204: Seasonal | E204: Liquid | F204: 5.65
A205: Essex Ale Yeast | B205: WLP022 | C205: White labs | D205: Seasonal | E205: Liquid | F205: 5.65
A206: German Ale II Yeast | B206: WLP003 | C206: White labs | D206: Seasonal | E206: Liquid | F206: 5.65
A207: Premium Bitter Yeast | B207: WLP026 | C207: White labs | D207: Seasonal | E207: Liquid | F207: 5.65
A208: Belgian Wit II Yeast | B208: WLP410 | C208: White labs | D208: Seasonal | E208: Liquid | F208: 5.65
A209: Zurich Lager Yeast | B209: WLP885 | C209: White labs | D209: Seasonal | E209: Liquid | F209: 5.65
A210: Bedford British Yeast | B210: WLP006 | C210: White labs | D210: Seasonal | E210: Liquid | F210: 5.65
... 8 more rows

Sheet Constants (hidden)
A2: Mash Tmax-crit | B2: 155 | C2: deg F
A3: Mash Tmin-crit | B3: 145 | C3: deg F
A5: Approximate Brewhouse Efficiency | B5: 0.676
A10: Hops Usages | B10: Bittering
B11: Aroma
B12: Dual

Sheet Scratch (hidden)
B1: modified from Tom M's Acid Addition Calculation Sheet (palmer 10/2006)
J3: ppm as CaCO3
A4: Carbonate Ratio at (_) pH | E4: H2CO3 | F4: HCO3- | G4: CO3-- | J4: HCO3 ppm (if pH<8.4)
A5: ph | B5: r1 | C5: r2 | D5: d | E5: f1 | F5: f2 | G5: f3
A6: =Mash!B43 -> 8 | B6: =10^(A6-6.38) -> 41.68693835 | C6: =10^(A6-10.33) -> 0.004677351413 | D6: =1+B6+B6*C6 -> 42.88192281 | E6: =1/D6 -> 0.02331984982 | F6: =B6/D6 -> 0.9721331419 | G6: =B6*C6/D6 -> 0.004547008325
A7: =Mash!C43 -> 6 | B7: =10^(Mash!C44-6.38) -> 4.168693835e-07 | C7: =10^(Mash!C44-10.33) -> 4.677351413e-11 | D7: =1+B7+B7*C7 -> 1.000000417 | E7: =1/D7 -> 0.9999995831 | F7: =B7/D7 -> 4.168692097e-07 | G7: =B7*C7/D7 -> 1.949843787e-17 | J7: Alkalinity as CaCO3
A8: 4.3 | B8: =10^(4.3-6.38) -> 0.008317637711 | C8: =10^(4.3-10.33) -> 9.332543008e-07 | D8: =1+B8+B8*C8 -> 1.008317645 | E8: =1/D8 -> 0.9917509671 | F8: =B8/D8 -> 0.008249025244 | G8: =B8*C8/D8 -> 7.698438286e-09 | J8: Bicarbonate (ppm)
H10: ct
B11: Calculated values
B12: Total Alkalinity | D12: =IF(Mash!E14="Alkalinity as CaCO3",Mash!E19,Mash!E19*50/61) -> 0
B13: converted to mEq/L | D13: =D12/50 -> 0 | E13: mEq/L
B14: Carbo system at pH = | D14: =Mash!B43 -> 8
B15: % of Carbo as H2CO3 | D15: =E6 -> 0.02331984982
B16: % of Carbo as HCO3- | D16: =F6 -> 0.9721331419
B17: % of Carbo as CO3-- | D17: =G6 -> 0.004547008325
B18: Carbo system at pH = | D18: =Mash!C43 -> 6
B19: % of Carbo as H2CO3 | D19: =E7 -> 0.9999995831
B20: % of Carbo as HCO3- | D20: =F7 -> 4.168692097e-07
B21: % of Carbo as CO3-- | D21: =G7 -> 1.949843787e-17
B22: Adjusted Total Alk | D22: =D13/((E8-E6)+(G6-G8)) -> 0 | E22: mEq/L
B23: E (rough) | D23: =D22*((D19-E6)+(G6-D21))+10^(-Mash!C43)-10^(-A6) -> 9.9e-07 | E23: mEq/l
A25: acid | C25: pk1 | D25: pk2 | E25: pk3 | F25: pH | G25: r1d | H25: r2d | I25: r3d | J25: dd | K25: f1d | L25: f2d | M25: f3d | N25: f4d | O25: frac/ H ions
P27: Adjusted mEq Acid
A28: hydrochloric | B28: 36.46 | C28: -10 | D28: 20 | E28: 20 | F28: =Mash!C$43 -> 6 | G28: =10^($F28-C28) -> 1e+16 | H28: 1e-14 | I28: 1e-14 | J28: =1/(1+G28+G28*H28+G28*H28*I28) -> 1e-16 | K28: =J28 -> 1e-16 | L28: =K28*G28 -> 1 | M28: =G28*H28*J28 -> 1e-14 | N28: =G28*H28*I28*J28 -> 1e-28 | O28: =L28+2*M28+3*N28 -> 1 | P28: =D$23/O28 -> 9.9e-07
A29: phosphoric | B29: 98 | C29: 2.12 | D29: 7.2 | E29: 12.44 | F29: =Mash!C$43 -> 6 | G29: 7585.77575 | H29: 0.06309573445 | I29: 3.630780548e-07 | J29: =1/(1+G29+G29*H29+G29*H29*I29) -> 0.0001239863186 | K29: =J29 -> 0.0001239863186 | L29: =K29*G29 -> 0.940532409 | M29: =G29*H29*J29 -> 0.05934358312 | N29: =G29*H29*I29*J29 -> 2.154635272e-08 | O29: =L29+2*M29+3*N29 -> 1.05921964 | P29: =D$23/O29 -> 9.346503432e-07
A30: lactic | B30: 90.08 | C30: 3.08 | D30: 20 | E30: 20 | F30: =Mash!C$43 -> 6 | G30: 831.7637711 | H30: 1e-14 | I30: 1e-14 | J30: =1/(1+G30+G30*H30+G30*H30*I30) -> 0.001200820731 | K30: =J30 -> 0.001200820731 | L30: =K30*G30 -> 0.9987991793 | M30: =G30*H30*J30 -> 9.987991793e-15 | N30: =G30*H30*I30*J30 -> 9.987991793e-29 | O30: =L30+2*M30+3*N30 -> 0.9987991793 | P30: =D$23/O30 -> 9.911902418e-07
A31: sulfuric | B31: 98.07 | C31: -10 | D31: 1.92 | E31: 20 | F31: =Mash!C$43 -> 6 | G31: 1e+16 | H31: 12022.64435 | I31: 1e-14 | J31: =1/(1+G31+G31*H31+G31*H31*I31) -> 8.316945938e-21 | K31: =J31 -> 8.316945938e-21 | L31: =K31*G31 -> 8.316945938e-05 | M31: =G31*H31*J31 -> 0.9999168305 | N31: =G31*H31*I31*J31 -> 9.999168305e-15 | O31: =L31+2*M31+3*N31 -> 1.999916831 | P31: =D$23/O31 -> 4.950205853e-07

Sheet Mash
B1: Mash Residual Alkalinity Adjustment Worksheet Version 2.4 (US Units)
D2: User Input | G2: by John Palmer All Rights Reserved 2008
D3: Calc. Output | F3: Units are grams, gallons, and milliliters.
B5: Step 1: Enter Target Beer Color to see range of suggested Residual Alkalinity, Or Enter a Target Water Profile to see its calculated Residual Alkalinity value and a range of suggested Beer Color. (Choose either "Bicarbonate" or "Total Alkalinity" in E10 and enter the appropriate value in E11.)
B6: Target Color (SRM) | C6: Est. RA (Low) | D6: Est. RA (High)
B7: 3 | C7: =B7*12.2-122.4 -> -85.8 | D7: =(B7-5.2)*12.2 -> -26.84
T8: Ratio | U8: Balance
B9: Target Water | C9: Calcium (ppm) | D9: Magnesium (ppm) | E9: Alkalinity as CaCO3 | F9: Sodium (ppm) | G9: Chloride (ppm) | H9: Sulfate (ppm) | K9: (Effective Hardness) | L9: Residual Alkalinity as CaCO3 | M9: Est. SRM (Low) | N9: Est. SRM (High) | O9: Chloride to Sulfate Balance | T9: 0 | U9: Very Bitter
B10: (ppm) | C10: 0 | D10: 0 | E10: 0 | F10: 0 | G10: 0 | H10: 0 | K10: =(C10/1.4)+(D10/1.7) -> 0 | L10: =IF(E9="Bicarbonate (ppm)", (50*E10/61)-K10, E10-K10) -> 0 | M10: =IF(L10<-69,0,L10*0.082+5.2) -> 5.2 | N10: =IF(L10<-128,0,(L10+122.4)/12.2) -> 10.03278689 | O10: =VLOOKUP(G10/H10,T9:U13, 2, TRUE) ->  | T10: 0.501 | U10: Bitter
T11: 0.768 | U11: Balanced
B12: Step 2: Enter Source Water Profile. (Choose "Bicarbonate" or "Alkalinity" in E14.) | T12: 1.3 | U12: Malty
B13: Source Water | C13: Calcium (ppm) | D13: Magnesium (ppm) | E13: Alkalinity as CaCO3 | F13: Sodium (ppm) | G13: Chloride (ppm) | H13: Sulfate (ppm) | I13: Water pH | K13: (Effective Hardness) | L13: Residual Alkalinity as CaCO3 | M13: Est. SRM (Low) | N13: Est. SRM (High) | O13: Chloride to Sulfate Ratio | T13: 2.01 | U13: Very Malty
B14: (ppm) | C14: 51 | D14: 16 | E14: 190 | F14: 66 | G14: 63 | H14: 120 | I14: 8.1 | K14: =(C14/1.4)+(D14/1.7) -> 45.84033613 | L14: =IF(E13="Bicarbonate (ppm)", (50*E14/61)-K14, E14-K14) -> 144.1596639 | M14: =IF(L14<-69,0,L14*0.082+5.2) -> 17.02109244 | N14: =IF(L14<-128,0,(L14+122.4)/12.2) -> 21.84915278 | O14: =VLOOKUP(G14/H14,T9:U13, 2, TRUE) -> Bitter
B16: Step 3: Optional: Dilute Source Water with Distilled Water (Enter Zero if not diluting.)
B17: Dilution Rate | C17: Calcium (ppm) | D17: Magnesium (ppm) | E17: =E13 -> Alkalinity as CaCO3 | F17: Sodium (ppm) | G17: Chloride (ppm) | H17: Sulfate (ppm) | K17: (Effective Hardness) | L17: Residual Alkalinity as CaCO3 | M17: Est. SRM (Low) | N17: Est. SRM (High) | O17: Chloride to Sulfate Ratio
B18: 0 | C18: =(1-$B18)*C14 -> 51 | D18: 16 | E18: 190 | F18: 66 | G18: 63 | H18: 120 | K18: =(C18/1.4)+(D18/1.7) -> 45.84033613 | L18: =IF(E17="Bicarbonate (ppm)", (50*E18/61)-K18, E18-K18) -> 144.1596639 | M18: =IF(L18<-69,0,L18*0.082+5.2) -> 17.02109244 | N18: =IF(L18<-128,0,(L18+122.4)/12.2) -> 21.84915278 | O18: =VLOOKUP(G18/H18,T9:U13, 2, TRUE) -> Bitter
B20: Step 4: Enter a Target Residual Alkalinity Value, based on Step 1, and the total volume of mash water.
B21: Target Residual Alkalinity | C21: Mash Water Volume (gal) | D21: Volume of Source Water (gal.) | E21: Volume of Distilled Water (gal.) | F21: Additional Eff. Hardness Needed | G21: Additional Alkalinity Needed | H21: Target RA Est. SRM (Low) | I21: Target RA Est. SRM (High)
B22: =IF(AVERAGE(C7:D7)>=0, AVERAGE(C7:D7),0) -> 0 | C22: 3 | D22: =(1-B18)*C22 -> 3 | E22: =(B18)*C22 -> 0 | F22: =IF(L18>B22,(IF(E17="Bicarbonate (ppm)", (50*E18/61), E18)-B22)-K18,0) -> 144.1596639 | G22: =IF(L18<B22,B22-L18,0) -> 0 | H22: =IF(B22<-69,0,B22*0.082+5.2) -> 5.2 | I22: =IF(B22<-128,0,(B22+122.4)/12.2) -> 10.03278689
B24: Step 5: Optional: Add salts to Mash Water. (Enter Zeros if not adding salt.)
B25: Salt Additions | C25: Chalk CaCO3 | D25: Gypsum CaSO4 *2H2O | E25: Calcium Chloride CaCl2*2H2O | F25: Epsom Salt MgSO4 *7H2O | G25: Baking Soda NaHCO3
B26: (grams) | C26: 0 | D26: 0 | E26: 4 | F26: 0 | G26: 0
B28: Salt Contributions | C28: Calcium (ppm) | D28: Magnesium (ppm) | E28: HCO3 (ppm) | F28: Sodium (ppm) | G28: Chloride (ppm) | H28: Sulfate (ppm) | K28: Contributed Hardness | L28: Contributed Alkalinity
B29: (ppm) | C29: =(C26*105.89+D26*60+E26*72)/C22 -> 96 | D29: =F26*24.6/C22 -> 0 | E29: =(C26*158+G26*191.88)/C22 -> 0 | F29: =G26*72.3/C22 -> 0 | G29: =E26*127.47/C22 -> 169.96 | H29: =(D26*147.4+F26*103)/C22 -> 0 | K29: =(C29/1.4)+(D29/1.7) -> 68.57142857 | L29: =(E29)*50/61 -> 0
B31: Step 6: Optional: Add Acid to Mash Water. (Enter Zero if not adding acid.)
B32: Acid Adjustment | C32: Bottle Conc. | D32: Est. Acid-Only Mash Addition (ml) | E32: Mash Water Addition (ml)
B33: Hydrochloric | C33: 0.37 | D33: =IF(L18>B22,3.785*C22*F22/50/((13.927*C33*C33)+(27.319*C33)),0) -> 2.724898103 | E33: 0
B34: Lactic | C34: 0.88 | D34: =IF(L14>B22,0.88/C34*3.785*C22*F22/50/11.8,0) -> 2.774462683 | E34: 0
B36: Step 7: Result: Adjusted Mash Chemistry and Final Residual Alkalinity and Beer Color Range
B37: Adjusted Mash | C37: Calcium (ppm) | D37: Magnesium (ppm) | E37: Alkalinity as CaCO3 | F37: Sodium (ppm) | G37: Chloride (ppm) | H37: Sulfate (ppm) | K37: (Effective Hardness) | L37: Residual Alkalinity as CaCO3 | M37: Est. SRM (Low) | N37: Est. SRM (High) | O37: Chloride to Sulfate Ratio
B38: (ppm) | C38: =C18+C29 -> 147 | D38: =D18+D29 -> 16 | E38: =IF(E13="Bicarbonate (ppm)", 50/61*E18+L29, E18+L29) -> 190 | F38: =F18+F29 -> 66 | G38: =IF(D33=0,G18+G29,G18+G29+(E33*12*C33/0.37*35.4/(C22*3.785))) -> 232.96 | H38: =H18+H29 -> 120 | K38: =(C38/1.4)+(D38/1.7) -> 114.4117647 | L38: =E38-K38-(50*E33*((13.927*C33*C33)+(27.319*C33))/(C22*3.785))- (50*E34*C34/0.88*11.8/(C22*3.785)) -> 75.58823529 | M38: =IF(L38<-69,0,L38*0.082+5.2) -> 11.39823529 | N38: =IF(L38<-128,0,(L38+122.4)/12.2) -> 16.22854388 | O38: =VLOOKUP(G38/H38,T9:U13, 2, TRUE) -> Malty
B41: Step 8: Optional: Sparge Water pH Adjustment
B42: Measure Sparge Water pH @ 20C | C42: Target Sparge Water pH @ 20C | D42: Sparge Water Volume (gal)
B43: 8 | C43: 6 | D43: 5
B45: Acid Adjustment | C45: Bottle Conc. | D45: Est. Sparge Water Addition (ml)
B46: Hydrochloric | C46: 0.37 | D46: =IF(B43>C43,3.785*D43*Scratch!P28/((13.927*C46*C46)+(27.319*C46)),0) -> 1.5594105e-06
B47: Lactic | C47: 0.88 | D47: =IF(B43>C43,0.88/C47*3.785*D43*Scratch!P30/11.8,0) -> 1.58968435e-06
